Cogmind - Beta 17 @@@ ROGUE MODE // 2026.06.27 @ 20:03:07 Player: Dull Result: Destroyed self with Grenade Launcher Performance ------------- Evolutions (0) 0 Regions Visited (2) 400 Robots Destroyed (31) 155 Value Destroyed (755) 755 Prototype IDs (0) 0 Alien Tech Used (0) 0 Bonus (0) 0 TOTAL SCORE: 1310 Bonus ------- None Cogmind --------- Core Integrity 0/250 Matter 233/300 Energy 240/250 System Corruption 0% Temperature Cool (0) Movement Rolling (135) Ox3 Location -10/Mines Parts ------- > --- POWER (1) -------- Ion Engine > --- PROPULSION (2) --- Wheel Compact Wheel > --- UTILITY (2) ------ Huge Storage Unit Visual Processing Unit > --- WEAPON (2) ------- Particle Gun Grenade Launcher > --- INVENTORY (25) --- Ion Engine Ion Engine Light Treads Light Treads Light Treads Scrap Suit Huge Storage Unit Signal Interpreter Small Laser Small Laser Particle Gun Assault Rifle Grenade Launcher Rocket Launcher Hammer Peak State ------------ > --- POWER ------------ Ion Engine > --- PROPULSION ------- Wheel Compact Wheel > --- UTILITY ---------- Improved Heat Sink Huge Storage Unit > --- WEAPON ----------- Small Laser Particle Gun > --- INVENTORY -------- Ion Engine Ion Engine Light Treads Light Treads Light Treads Scrap Suit Huge Storage Unit Visual Processing Unit Signal Interpreter Small Laser Particle Gun Assault Rifle Grenade Launcher Grenade Launcher Hammer [Rating: 12] Favorites ----------- Power Ion Engine Engine Ion Engine Propulsion Wheel Leg Aluminum Leg Wheel Wheel Utility Huge Storage Unit Device Improved Heat Sink Storage Huge Storage Unit Processor Visual Processing Unit Weapon Particle Gun Energy Gun Particle Gun Ballistic Gun Assault Rifle Launcher Grenade Launcher Build | -11 -10 -10 ------- Run | Yrd Mat Min Slots Evolved . | . . . Power . | . . . Propulsion . | . . . Utility . | . . . Weapon . | . . . Parts Attached 13 | . 10 3 Power 1 | . 1 . Engine 1 | . 1 . Core . | . . . Reactor . | . . . Propulsion 2 | . 2 . Treads . | . . . Leg . | . . . Wheel 2 | . 2 . Hover . | . . . Flight . | . . . Utility 3 | . 2 1 Device 1 | . 1 . Storage 1 | . 1 . Processor 1 | . . 1 Hackware . | . . . Protection . | . . . Artifact . | . . . Weapon 7 | . 5 2 Energy Gun 4 | . 3 1 Energy Cannon . | . . . Ballistic Gun 1 | . 1 . Ballistic Cannon . | . . . Launcher 2 | . 1 1 Special Weapon . | . . . Impact Weapon . | . . . Slashing Weapon . | . . . Piercing Weapon . | . . . Special Melee Weapon . | . . . Unidentified Prototypes . | . . . Parts Lost 5 | . 4 1 Power . | . . . Propulsion 2 | . 2 . Utility 1 | . . 1 Weapon 2 | . 2 . Highest Loss Streak 4 | . 4 1 To Critical Strikes . | . . . Average Backups 12 | 6 10 14 Power 1 | 1 1 2 Propulsion 3 | 4 2 3 Utility 2 | . 2 3 Weapon 4 | 1 4 6 Tool/Special . | . . . Unused Backups 24 | 6 7 11 Power 5 | 1 2 2 Propulsion 7 | 2 2 3 Utility 5 | 1 1 3 Weapon 7 | 2 2 3 Tool/Special . | . . . Average Slot Usage (%) 97 | . 96 99 Engine 14 | . 14 14 Leg 2 | . 3 . Wheel 24 | . 23 28 Device 10 | . 11 7 Storage 14 | . 14 14 Processor 1 | . . 5 Energy Gun 23 | . 24 21 Ballistic Gun 2 | . 3 . Launcher 2 | . . 6 Peak Build Rating 12 | 6 11 12 Average Rating 10 | 6 10 11 On Entrance 7 | 6 6 11 Avg Prop Armor Cover (%) . | . . . Naked Turns . | . . . Heaviest Build 91 | 14 90 91 Greatest Support 26 | 20 26 26 Greatest Overweight (x) 3 | . 3 3 Average Overweight (x) 2 | . 2 3 Largest Inventory Capacity 25 | 8 25 25 Average Capacity 21 | 8 20 25 Most Carried 17 | 6 15 17 Average Carried 12 | 6 11 15 Final Capacity 25 | 8 25 25 Final Carried 16 | 6 14 16 Class Distribution -------------------- 100% | Mutant Dominant Class ---------------- Mutant | -10/Materials Mutant | -10/Mines Resources | -11 -10 -10 ----------- Run | Yrd Mat Min Matter Collected 515 | 200 257 58 Remotely . | . . . Salvage Created 854 | . 686 168 Parts 44 | . 33 11 Haulers Intercepted 2 | . 2 . Recyclers Shooed . | . . . Parts Field Recycled . | . . . Retrieved Matter . | . . . Parts Self-Destructed . | . . . Prevented . | . . . Parts Restored . | . . . Kills | -11 -10 -10 ------- Run | Yrd Mat Min Combat Hostiles Destroyed 25 | . 17 8 Guns 17 | . 16 1 AOE 7 | . . 7 Classes Destroyed 5 | . 4 1 Worker 1 | . . 1 Hauler 2 | . 2 . Watcher 3 | . 3 . Swarmer 10 | . 6 4 Grunt 15 | . 11 4 Best Kill Streak 8 | . 8 4 Combat Bots Only 4 | . 4 3 Max Kills in Single Turn 3 | . 1 3 Gunslinging . | . . . Exploded 2 | . . 2 Melee . | . . . Uniques/NPCs Destroyed . | . . . Combat | -11 -10 -10 -------- Run | Yrd Mat Min Hostile Shots Fired 136 | . 124 12 Missed 41 | . 38 3 Hits 95 | . 86 9 Projectile 95 | . 86 9 Damage Taken 1043 | . 911 132 Core 252 | . 237 15 Absorbed by Shields . | . . . Regen/Repaired (Parts) 60 | . 60 . Core Remaining (%) 100 | 100 . . Volleys Fired 82 | . 73 9 Largest 2 | . 2 2 Hottest 105 | . 105 95 Shots Fired 159 | . 141 18 Gun 149 | . 140 9 Cannon . | . . . Launcher 10 | . 1 9 Special . | . . . Kinetic 49 | . 49 . Thermal 99 | . 90 9 Explosive 10 | . 1 9 Electromagnetic 1 | . 1 . Robot Hit Streak 22 | . 22 5 Robot Miss Streak 4 | . 4 1 Penetration Max . | . . . Secondary Targets 1 | . 1 . Max Gunslinging Chain 1 | . 1 . Shots Hit Robots 104 | . 94 10 Core Hits 45 | . 32 13 Critical Kills . | . . . Critical Parts Destroyed . | . . . Critical Strikes 3 | . 2 1 Burn 3 | . 2 1 Melee Attacks . | . . . Impact . | . . . Slashing . | . . . Piercing . | . . . Sneak Attacks . | . . . Combat Hostiles . | . . . Follow-up Attacks . | . . . Damage Inflicted 1780 | . 1284 496 Guns 1355 | . 1284 71 Cannons . | . . . Explosions 425 | . . 425 Melee . | . . . Ramming . | . . . Kinetic 428 | . 428 . Thermal 927 | . 856 71 Explosive 425 | . . 425 Electromagnetic . | . . . Impact . | . . . Slashing . | . . . Piercing . | . . . Highest Corruption . | . . . Average Corruption . | . . . Corruption Purged . | . . . Corruption Blocked . | . . . Overload Shots . | . . . Overflow Damage . | . . . Projectiles . | . . . Explosions . | . . . Melee . | . . . Knockbacks . | . . . Impact . | . . . Kinetic . | . . . Secondary . | . . . Self-Inflicted Damage 12 | . . 12 Shots 1 | . . 1 Rammed . | . . . Targets Rammed . | . . . Kicked . | . . . Crushed . | . . . Highest Temperature 131 | . 42 131 Average Temperature 16 | . 9 54 Received Heat Transfer 483 | . 429 54 Siege Activations . | . . . Martial Activations . | . . . Shielding Activations . | . . . Robots Disrupted . | . . . Combat Hostiles . | . . . Robots Corrupted . | . . . Combat Hostiles . | . . . Parts Fried . | . . . Impact Corruptions . | . . . Robots Melted 2 | . 2 . Combat Hostiles 1 | . 1 . Parts Melted 6 | . 6 . Heat Transferred 2329 | . 2094 235 Parts Sabotaged . | . . . Parts Stolen . | . . . Parts Stripped . | . . . Power Chain Reactions . | . . . Alert | -11 -10 -10 ------- Run | Yrd Mat Min Maximum Alert Level . | . . . Low Security (%) 100 | 100 100 100 Level 1 . | . . . Level 2 . | . . . Level 3 . | . . . Level 4 . | . . . Level 5 . | . . . High Security . | . . . Max Security . | . . . Peak Influence 128 | . 128 78 Initial . | . . . Average 30 | . 34 23 Influence Increases 794 | . 513 281 Destroy 0b10 Robot/C 500 | . 340 160 Destroy 0b10 Robot/NC 30 | . 25 5 Destroy Leader 110 | . 70 40 Successful Hack 22 | . 22 . Disable Machine 60 | . 15 45 Destroy Structure 42 | . 11 31 Lose Combat Pursuer 30 | . 30 . Influence Decreases 685 | . 513 172 Time Decay 537 | . 375 162 Lost Part 50 | . 40 10 Purge Threat 98 | . 98 . Squads Dispatched 3 | . 3 . Investigation 3 | . 3 . Extermination . | . . . Reinforcement . | . . . Assault . | . . . Garrison . | . . . Intercept . | . . . Searches Triggered . | . . . Construction Impeded . | . . . Haulers Reinforced . | . . . Active Scanning Responses . | . . . Cargo Convoy Interrupts . | . . . Stealth | -11 -10 -10 --------- Run | Yrd Mat Min Distress Signals . | . . . Communications Jammed . | . . . Distress Signals . | . . . Times Spotted 35 | . 26 9 Peak Tracking Total 7 | . 7 3 Tactical Retreats 2 | . 2 . Traps | -11 -10 -10 ------- Run | Yrd Mat Min Traps Triggered 3 | . 3 . Indirectly . | . . . Trap Hack Attempts . | . . . Triggered . | . . . Disarmed . | . . . Reprogrammed . | . . . Reused . | . . . Traps Extracted . | . . . Installed . | . . . Triggered . | . . . Machines | -11 -10 -10 ---------- Run | Yrd Mat Min Machines Disabled 4 | . 1 3 Max in Single Turn 2 | . 1 2 Machines Repaired . | . . . Machines Dismantled . | . . . Machines Sabotaged . | . . . Overloaded Fab Kills . | . . . Hacking | -11 -10 -10 --------- Run | Yrd Mat Min Machines Accessed 8 | . 8 . Terminals 6 | . 6 . Fabricators . | . . . Repair Stations 1 | . 1 . Recycling Units 1 | . 1 . Scanalyzers . | . . . Garrison Access . | . . . Total Hacks 18 | . 18 . Successful 11 | . 11 . Failed 7 | . 7 . Catastrophic 1 | . 1 . Database Lockouts . | . . . Manual 4 | . 4 . Terminals 14 | . 14 . Fabricators . | . . . Repair Stations 3 | . 3 . Recycling Units 1 | . 1 . Scanalyzers . | . . . Garrison Access . | . . . Terminal Hacks 9 | . 9 . Record 1 | . 1 . Robot Analysis 2 | . 2 . Unreport Threat 2 | . 2 . Locate Traps 2 | . 2 . Maintenance Status 1 | . 1 . Recall Investigation 1 | . 1 . Fabricator Hacks . | . . . Repair Station Hacks 2 | . 2 . Scan Component 1 | . 1 . Repair 1 | . 1 . Recycling Unit Hacks . | . . . Scanalyzer . | . . . Garrison Access Hacks . | . . . Unauthorized Hacks . | . . . Terminals . | . . . Fabricators . | . . . Repair Stations . | . . . Recycling Units . | . . . Scanalyzers . | . . . Garrison Access . | . . . Data Cores Recovered . | . . . Used . | . . . Hacking Detections 4 | . 4 . Full Trace Events . | . . . Feedback Events . | . . . Feedback Blocked . | . . . Robot Schematics Acquired . | . . . Robots Built . | . . . Authchips . | . . . Time . | . . . Total Robot Build Rating . | . . . Part Schematics Acquired . | . . . Parts Built . | . . . Authchips . | . . . Time . | . . . Total Part Build Rating . | . . . Part Studies Acquired . | . . . Parts Repaired 1 | . 1 . Time 26 | . 26 . Parts Recycled . | . . . Recycled Matter . | . . . Retrieved Matter . | . . . Retrieved Components . | . . . Parts Scanalyzed . | . . . Part Schematics Acquired . | . . . Parts Damaged . | . . . Bothacking | -11 -10 -10 ------------ Run | Yrd Mat Min Used RIF Installer . | . . . Robots Hacked . | . . . Non-combat . | . . . Combat . | . . . Robot Hacks Applied . | . . . Relay Couplers Released . | . . . Fabnet Peak Effective % . | . . . Robots Rewired . | . . . Allies Hacked . | . . . Hacks Repelled . | . . . Allies | -11 -10 -10 -------- Run | Yrd Mat Min Total Allies . | . . . Largest Group . | . . . Highest-Rated Group . | . . . Highest-Rated Ally . | . . . Total Orders . | . . . Ally Attacks . | . . . Total Damage . | . . . Kills . | . . . Allies Corrupted . | . . . Allies Melted . | . . . Intel | -11 -10 -10 ------- Run | Yrd Mat Min Active Infowar (turns) 249 | . . 249 Optics 249 | . . 249 Robot Analysis Total 2 | . 2 . Derelict Logs Recovered 2 | . . 2 Drone Launches . | . . . Drone Recoveries . | . . . Exploration | -11 -10 -10 ------------- Run | Yrd Mat Min Turns Passed 1913 | 36 1290 587 Spaces Moved 1176 | 31 740 405 Core . | . . . Treads . | . . . Legs 102 | 31 71 . Wheels 1074 | . 669 405 Hover . | . . . Flight . | . . . Fastest Speed 90 | 120 90 135 Average Speed 129 | 120 126 135 Slowest Speed 190 | 120 190 135 Overloaded Moves . | . . . Propulsion Burnouts . | . . . Robots Hopped . | . . . Potential Cave-ins . | . . . Cave-ins Triggered . | . . . Exploration Rate (%) 62 | 3 98 85 Regions Visited 2 Branch Regions 1 Pre-discovered Areas 1 | . . 1 Known Exits Taken . | . . . Unknown Exits Taken 2 | 1 1 . Scrap Searched 1 | . . 1 Spaces Dug 7 | . 7 . Terrain Destroyed 44 | . 7 37 Melee . | . . . Projectile . | . . . AOE 44 | . 7 37 Terrain Rammed . | . . . Walls Destroyed . | . . . Machines Disabled . | . . . Actions | -11 -10 -10 --------- Run | Yrd Mat Min Total 1414 | 30 956 428 Wait 121 | . 113 8 Move 1174 | 30 739 405 Hop . | . . . Pick Up 16 | . 14 2 Fast Attach 2 | . 2 . Attach 5 | . 4 1 Detach . | . . . Swap 9 | . 6 3 Drop 5 | . 5 . Fire 82 | . 73 9 Melee . | . . . Ram . | . . . Kick . | . . . Crush . | . . . Escape Stasis . | . . . Rewire . | . . . Trap . | . . . Miscellaneous . | . . . Route ------- -11/Scrapyard -10/Materials (discovered 4 exits: [*Mat x3] / [*Min]) -10/Mines (discovered 2 exits: [*Mat x2]) History --------- Turn | Location | Event 1 | -11/Scrapyard | Discovered new exit (range 3) 37 | -11/Scrapyard | Entered Materials 194 | -10/Materials | Core integrity fell below 50% 256 | -10/Materials | Lost 4 parts (2n2w) 283 | -10/Materials | Discovered new exit (range 15) 307 | -10/Materials | Build established: Mutant 839 | -10/Materials | Discovered new exit (range 5) 961 | -10/Materials | Core integrity fell below 20% 1162 | -10/Materials | Discovered new exit (range 12) 1218 | -10/Materials | Repaired Sml. Laser 1290 | -10/Materials | Discovered new exit (range 12) 1327 | -10/Materials | Entered Mines 1542 | -10/Mines | Found a Scrap Suit stashed away for nefarious purposes 1544 | -10/Mines | Found Scrap Suit 1564 | -10/Mines | Discovered new exit (range 8) 1566 | -10/Mines | Learned Materials stockpile data 1571 | -10/Mines | Received a Rocket Launcher from a helpful Derelict 1693 | -10/Mines | Found a hidden stash of uninstalled traps 1723 | -10/Mines | Discovered new exit (range 5) 1914 | -10/Mines | Destroyed self with Grenade Launcher Last Messages --------------- here! 01723_ EXIT=FOUND 01775_ T-07 Excavator is excavating. 01804_ Acquired derelict log, extracted data. World map updated: -8/Materials. 01865_ S-10 Pest destroyed. 01865_ K-01 Serf destroyed. 01865_ S-10 Pest destroyed. 01868_ The unstable cave ceiling collapses. 01868_ S-10 Pest suffers critical hit (Burn). 01868_ S-10 Pest destroyed. 01873_ U-05 Engineer lays Concrete. 01875_ U-05 Engineer builds a Wall. 01877_ Acquired 2 matter. 01878_ U-05 Engineer builds a Wall. 01879_ U-05 Engineer lays Concrete. 01879_ U-05 Engineer builds a Wall. 01885_ U-05 Engineer lays Concrete. 01888_ U-05 Engineer builds a Wall. 01914_ Pulverizer disabled. Map ----- +----------------------------------------------------+ | ??????# #???# #??????????? | | ?????## ######## #???# #??????????? | | ????### ###????# #??## #??????????? | | ????# # # #????# #### #??????????? | | ###### # #????# ##?????????? | | ####%# #????### # #?????????? | | [%=# #??????# ## ##????????? | | # # ###??????# ### ##???????? | | ##### ####?????# #?## ##??????? | | ????## ##????# #??## #??????? | | ?????# ##???# #???# #??????? | | ?????## #???# ?? #??????? | | ??????# """ #???# #?#### ##??????? | | ??????# """ #???# #????####???????? | | ??????# """ ##??# #???????????????? | | ??????## #### ##??????????????? | | ???????## ## ##?????????????? | | ????????# ## k ##????????????? | | ????????# ### ##???????????? | | ????????# #?## ##??????????? | | ????????# #??## ##?????????? | | ????????# #???##### #???????#?? | | ????????# #???????## #?????s #?? | | ????????# #????????## #??? "s#?? | | ???????? #????????## ## " #?? | | ????????##?????????# @ " #?? | | ??????????????????# " #?? | | ?????????????? #### #?? | | ?????????? #???#######?? | | ?????????###### #### ##???????????? | | ??????????????#????####????????????? | | ???????????????????????????????????? | | ???????????????????????????????????? | | ???????????????????????????????????? | | ???????????????????????????????????? | | ???????????????????????????????????? | | ???????????????????????????????????? | | ???????????????????????????????????? | | ???????????????????????????????????? | | ???????????????????????????????????? | | ???????????????????????????????????? | | | | | | | | | | | | | | | | | | | +----------------------------------------------------+ Best States ------------- Heat Dissipation 39 Energy Generation 10 Energy Capacity 250 Matter Stores 300 Matter Capacity 300 Sight Range 18 Terrain Scan Density 10 Evasion (%) 55 Item Schematics ----------------- None Robot Schematics ------------------ None Fabricated ------------ Nothing Repaired ---------- Sml. Laser | 14% | -10/Materials Studied --------- None Alien Tech Used ----------------- None Achievements -------------- None Challenges ------------ None Game ------ Seed TrackerSchematicGutpuncher Manual? 0 Play Time 00:13:16 Cumulative 152.3 hours Start 2026.06.27 @ 19:48:43 End 2026.06.27 @ 20:03:07 Sessions 1 Manual Loads 0 Difficulty Rogue Special Mode None Game No. 206 Rogue 206 Adventurer 0 Explorer 0 Win Type - Total 1 Types 1/0/0/0/0/0/0/0/0/0 Lore% 49 Gallery% 53 Achievement% 30 Wizard Run 0 Options --------- Layout 1 ASCII 0 Keyboard 0 Movement Mouse Keybinds 1 Fullscreen 1 Font 24/Smallcaps Map View 50x35 Zoom Use 0% Tactical HUD 1 Map Filters NONE Filters NONE Steam 1 RUN: 5386f024-c751-4eeb-a619-c6b16b6d8e17